bitfinex-derivatives/quotes_BTCF0:USTF0_20260127
["timestamp","ask_amount","ask_price","bid_price","bid_amount"]
[1769538513997,0.10252,87935.0,87924.0,0.11296051]
[1769538515096,0.10252,87953.0,87936.0,0.11037213]
[1769538515292,0.10252,87953.0,87938.0,0.11037213]
[1769538515602,0.11372747,87952.0,87938.0,0.11296051]
[1769538515797,0.011385,87951.0,87938.0,0.11296051]
[1769538516492,0.113905,87953.0,87938.0,0.11296051]
[1769538516901,0.11370807,87952.0,87938.0,0.11296051]
[1769538517795,0.011386,87941.0,87938.0,5.1e-07]
[1769538517996,0.11203259,87939.0,87921.0,0.40252]
[1769538518307,0.011387,87934.0,87922.0,0.00086333]
[1769538518494,0.00258787,87933.0,87922.0,0.00086333]
[1769538519289,0.10252,87943.0,87922.0,0.00086333]
[1769538519503,0.00258787,87939.0,87922.0,0.00086333]
[1769538520002,0.00258787,87939.0,87923.0,0.11037213]
[1769538520203,0.11203259,87950.0,87925.0,0.11037213]
[1769538520396,0.00258787,87944.0,87927.0,0.11037213]
[1769538520598,0.00258787,87944.0,87929.0,0.12176013]
[1769538520806,0.00258787,87944.0,87931.0,0.11037213]
[1769538521108,0.00258787,87944.0,87933.0,0.11037213]
[1769538521404,0.00258787,87944.0,87935.0,0.11037213]
[1769538521604,0.22741708,87979.0,87920.0,0.3]
[1769538521605,0.10248,87961.0,87936.0,0.11123546]
[1769538521807,0.11203259,87976.0,87952.0,0.11037213]
[1769538521995,0.11203259,87976.0,87954.0,0.11037213]
[1769538521996,0.10248,87974.0,87954.0,0.11037213]
[1769538522194,0.10248,87974.0,87956.0,0.11037213]
[1769538522395,0.11371454,87973.0,87958.0,0.11037213]
[1769538522603,0.11371454,87973.0,87958.0,0.11296051]
[1769538529599,0.10248,87974.0,87958.0,0.11296051]
[1769538529803,0.10248,87980.0,87961.0,0.11037213]
[1769538530107,0.11368093,87979.0,87963.0,0.11037213]
[1769538530318,0.11368093,87979.0,87964.0,0.11296051]
[1769538530508,0.12341459,87970.0,87954.0,0.10248]
[1769538530805,0.00258838,87969.0,87954.0,0.10334282]
[1769538531304,0.12341559,87966.0,87954.0,0.10248]
[1769538531493,0.11462097,87965.0,87954.0,0.10248]
[1769538532705,0.11462097,87965.0,87954.0,0.10334282]
[1769538533319,0.11203259,87962.0,87945.0,0.11037213]
[1769538533497,0.12600497,87961.0,87945.0,0.41111495]
[1769538533804,0.12600497,87961.0,87946.0,0.11037213]
[1769538534002,0.12600497,87961.0,87947.0,0.11123495]
[1769538534198,0.12600497,87961.0,87945.0,0.29988]
[1769538534409,0.12600497,87961.0,87945.0,0.30074282]
[1769538534605,0.011384,87956.0,87945.0,0.00086282]
[1769538534807,0.12116819,87955.0,87939.0,0.29988]
[1769538535105,0.12116819,87955.0,87940.0,0.00086282]
[1769538535306,0.011385,87952.0,87940.0,0.00086282]
[1769538535506,0.00258838,87951.0,87940.0,0.00086282]
[1769538540512,0.00258838,87951.0,87940.0,0.11362489]
[1769538540702,0.011383,87964.0,87945.0,0.11276207]
[1769538540901,0.00258838,87961.0,87947.0,0.11276207]
[1769538541100,0.11857981,87955.0,87941.0,0.29988]
[1769538541412,0.12996481,87953.0,87941.0,0.30074282]
[1769538541605,0.00258838,87952.0,87941.0,0.30074282]
[1769538542406,0.011385,87951.0,87941.0,0.30074282]
[1769538542611,0.00258838,87950.0,87941.0,0.30074282]
[1769538543715,0.11857981,87957.0,87942.0,0.11276207]
[1769538544007,0.10248,87963.0,87941.0,0.30074282]
[1769538544008,0.00258838,87956.0,87943.0,0.11362489]
[1769538544212,0.10248,87960.0,87945.0,0.11276207]
[1769538544410,0.00258838,87959.0,87947.0,0.11276207]
[1769538544710,0.00258838,87959.0,87949.0,0.11276207]
[1769538544910,0.00258838,87959.0,87950.0,0.11362489]
[1769538545408,0.10248,87960.0,87950.0,0.11362489]
[1769538545409,0.22741708,87977.0,87950.0,0.11362489]
[1769538545707,0.011383,87967.0,87954.0,0.11276207]
[1769538546013,0.22105981,87969.0,87955.0,0.00258838]
[1769538546707,0.11857981,87966.0,87948.0,0.29988]
[1769538546912,0.11857981,87960.0,87946.0,0.29988]
[1769538547099,0.011384,87956.0,87946.0,0.29988]
[1769538547701,0.12996381,87960.0,87946.0,0.30246838]
[1769538547907,0.011384,87958.0,87946.0,0.30246838]
[1769538548322,0.11857981,87960.0,87946.0,0.30246838]
[1769538548812,0.11857981,87960.0,87946.0,0.41523045]
[1769538549012,0.11857981,87960.0,87930.0,0.011387]
[1769538549013,0.11857981,87953.0,87932.0,0.08998855]
[1769538549212,0.11857981,87953.0,87914.0,0.09208196]
[1769538549213,0.11857981,87944.0,87927.0,0.29988]
[1769538549406,0.11857981,87954.0,87928.0,0.00086282]
[1769538549608,0.011385,87950.0,87929.0,0.011388]
[1769538549806,0.011385,87948.0,87930.0,0.00086282]
[1769538550008,0.011387,87936.0,87930.0,0.00086282]
[1769538550211,0.00258838,87947.0,87930.0,0.00086282]
[1769538550403,0.00258838,87946.0,87930.0,0.00086282]
[1769538551214,0.00258838,87946.0,87931.0,5.3e-07]
[1769538551403,0.12258838,87946.0,87931.0,0.00086335]
[1769538551609,0.011386,87943.0,87931.0,0.00086335]
[1769538551809,0.011386,87941.0,87931.0,5.3e-07]
[1769538552018,0.00258838,87940.0,87928.0,0.29988]
[1769538552311,0.00258838,87940.0,87928.0,0.00086282]
[1769538552502,0.113864,87955.0,87935.0,0.011387]
[1769538552711,0.00258838,87951.0,87939.0,0.011386]
[1769538552910,0.00258838,87951.0,87940.0,0.00086282]
[1769538553212,0.10248,87960.0,87940.0,0.00086282]
[1769538553514,0.00258838,87956.0,87940.0,0.00086282]
[1769538555415,0.131383,87965.0,87944.0,0.011386]
[1769538555718,0.011384,87954.0,87941.0,0.29988]
[1769538555908,0.00258838,87953.0,87941.0,0.40236]
[1769538556109,0.011385,87952.0,87941.0,0.40236]
[1769538556412,0.00258838,87951.0,87941.0,0.40236]
[1769538556618,0.011385,87950.0,87941.0,0.40236]
[1769538556919,0.00258838,87949.0,87940.0,0.29988]
[1769538563924,0.12938001,87980.0,87940.0,0.29988]
[1769538563925,0.12,87971.0,87940.0,0.29988]
[1769538564112,0.00258838,87969.0,87940.0,0.29988]
[1769538564419,0.01397138,87969.0,87949.0,0.011385]
[1769538564622,0.011383,87967.0,87950.0,0.29988]
[1769538564919,0.00258838,87966.0,87950.0,0.29988]
[1769538565420,0.00258838,87966.0,87951.0,0.011385]
[1769538568319,0.011383,87965.0,87950.0,0.29988]
[1769538568620,0.11786909,87960.0,87949.0,0.10248]
[1769538568819,0.131384,87958.0,87943.0,0.29988]
[1769538569018,0.11786909,87953.0,87943.0,0.29988]
[1769538569228,0.00258838,87952.0,87943.0,0.29988]
[1769538569617,0.011385,87951.0,87932.0,0.011387]
[1769538569820,0.011385,87951.0,87922.0,0.011388]
[1769538569821,0.00258838,87950.0,87934.0,0.011387]
[1769538570119,0.00258838,87950.0,87935.0,0.10248]
[1769538571420,0.00258838,87950.0,87935.0,0.113867]
[1769538571616,0.12045747,87950.0,87937.0,0.011387]
[1769538571823,0.12045747,87950.0,87935.0,0.113867]
[1769538572028,0.011385,87948.0,87935.0,0.10248]
[1769538572229,0.00258838,87947.0,87935.0,0.10248]
[1769538572520,0.011387,87938.0,87918.0,0.13498283]
[1769538572729,0.11786909,87930.0,87910.0,0.13498283]
[1769538573028,0.011388,87927.0,87911.0,0.40236]
[1769538573228,0.00258838,87926.0,87911.0,0.40236]
[1769538577726,0.011388,87925.0,87911.0,0.40236]
[1769538577927,0.00258838,87924.0,87911.0,0.40236]
[1769538578123,0.00258838,87924.0,87912.0,0.29988]
[1769538578427,0.01397638,87924.0,87912.0,0.29988]
[1769538580023,0.00258838,87924.0,87912.0,0.29988]
[1769538580419,0.011388,87923.0,87912.0,0.29988]
[1769538580621,0.00258838,87922.0,87912.0,0.29988]
[1769538582120,0.23786909,87930.0,87912.0,0.29988]
[1769538582121,0.011388,87929.0,87912.0,0.29988]
[1769538582329,0.01397638,87929.0,87912.0,0.29988]
[1769538583127,0.00258838,87929.0,87912.0,0.29988]
[1769538583522,0.00258838,87929.0,87912.0,0.31127]
[1769538583924,0.01397638,87929.0,87912.0,0.29988]
[1769538584431,0.011388,87927.0,87912.0,0.29988]
[1769538584733,0.00258838,87926.0,87912.0,0.29988]
[1769538589537,0.011388,87925.0,87912.0,0.29988]
[1769538589733,0.00258838,87924.0,87912.0,0.29988]
[1769538591039,0.011388,87927.0,87912.0,0.29988]
[1769538591238,0.00258838,87926.0,87912.0,0.29988]
[1769538593348,0.01397638,87926.0,87912.0,0.29988]
[1769538594529,0.00258838,87926.0,87912.0,0.29988]
[1769538594933,0.01397638,87926.0,87912.0,0.29988]
[1769538600332,0.011387,87938.0,87912.0,0.29988]
[1769538600534,0.113867,87937.0,87920.0,0.11786909]
[1769538600741,0.00258838,87936.0,87920.0,0.11786909]
[1769538600941,0.00258838,87936.0,87920.0,0.41782909]
[1769538601441,0.00258838,87936.0,87920.0,0.29996]
[1769538601641,0.11786909,87950.0,87920.0,0.41782909]
[1769538601841,0.40244,87949.0,87920.0,0.41782909]
[1769538602141,0.011386,87944.0,87920.0,0.41782909]
[1769538602347,0.011386,87940.0,87920.0,0.41782909]
[1769538602543,0.00258838,87940.0,87925.0,0.011388]
[1769538603343,0.23786909,87950.0,87927.0,0.011388]
[1769538603641,0.23786909,87950.0,87920.0,0.41782909]
[1769538603642,0.011386,87945.0,87920.0,0.41782909]
[1769538603841,0.01397438,87945.0,87928.0,0.011388]
[1769538604034,0.011386,87945.0,87920.0,0.11786909]
[1769538604344,0.11786909,87970.0,87944.0,0.011386]
[1769538604536,0.10506838,87969.0,87950.0,0.011385]
[1769538604736,0.10506838,87969.0,87952.0,0.011385]
[1769538604935,0.10248,87975.0,87953.0,0.29996]
[1769538605137,0.011382,87973.0,87954.0,0.10248]
[1769538605442,0.00258838,87972.0,87954.0,0.113864]
[1769538606633,0.00258838,87972.0,87954.0,0.10248]
[1769538606851,0.00258838,87972.0,87959.0,0.011384]
[1769538607544,0.10248,87977.0,87959.0,0.011384]
[1769538607849,0.00258838,87976.0,87954.0,0.10248]
[1769538608850,0.011382,87975.0,87954.0,0.10248]
[1769538609148,0.00258838,87974.0,87954.0,0.10248]
[1769538610041,0.00258838,87974.0,87958.0,0.011384]
[1769538610243,0.00258838,87974.0,87954.0,0.10248]
[1769538610444,0.11786909,87970.0,87954.0,0.10248]
[1769538610639,0.00258838,87969.0,87954.0,0.10248]
[1769538613149,0.011383,87968.0,87954.0,0.10248]
[1769538613351,0.00258838,87967.0,87954.0,0.10248]
[1769538616449,0.131383,87963.0,87944.0,0.113866]
[1769538616653,0.11786909,87961.0,87947.0,0.29988]
[1769538616843,0.00258838,87960.0,87947.0,0.29988]
[1769538617042,0.00258838,87960.0,87942.0,0.10248]
[1769538617043,0.12,87956.0,87942.0,0.10248]
[1769538617355,0.12,87956.0,87920.0,0.26424092]
[1769538617356,0.011385,87950.0,87935.0,0.29988]
[1769538617550,0.00258838,87949.0,87935.0,0.29988]
[1769538617750,0.00258838,87949.0,87936.0,0.011387]
[1769538618247,0.00258838,87949.0,87938.0,0.011386]
[1769538618452,0.10248,87956.0,87941.0,0.011386]
[1769538618652,0.00258838,87955.0,87942.0,0.011386]
[1769538619556,0.00258838,87955.0,87939.0,0.011386]
[1769538619852,0.12,87970.0,87940.0,0.11786909]
[1769538620050,0.011384,87960.0,87945.0,0.011386]
[1769538620453,0.00258838,87960.0,87945.0,0.011386]
[1769538621147,0.011384,87959.0,87945.0,0.011386]
[1769538621347,0.00258838,87960.0,87945.0,0.011386]
[1769538621950,0.00258838,87960.0,87947.0,0.011385]
[1769538622151,0.00258838,87960.0,87943.0,0.40236]
[1769538622757,0.011384,87959.0,87945.0,0.011386]
[1769538624055,0.11786909,87980.0,87949.0,0.11786909]
[1769538624246,0.11786909,87980.0,87962.0,0.011383]
[1769538624247,0.011382,87976.0,87962.0,0.011383]
[1769538624444,0.00258838,87976.0,87955.0,0.29988]
[1769538624649,0.12,87982.0,87955.0,0.29988]
[1769538624650,0.011381,87982.0,87967.0,0.011383]
[1769538624846,0.011381,87982.0,87960.0,0.11786909]
[1769538624847,0.01396938,87979.0,87965.0,0.29988]
[1769538625048,0.00258838,87979.0,87966.0,0.011383]
[1769538625247,0.011381,87982.0,87968.0,0.011383]
[1769538625450,0.00258838,87981.0,87965.0,0.311263]
[1769538625866,0.01396938,87981.0,87967.0,0.011383]
[1769538626362,0.00258838,87981.0,87969.0,0.011382]
[1769538627854,0.00258838,87981.0,87965.0,0.311263]
[1769538628064,0.00258838,87981.0,87965.0,0.29988]
[1769538628264,0.011382,87976.0,87965.0,0.29988]
[1769538628563,0.00258838,87975.0,87965.0,0.29988]
[1769538630363,0.011383,87963.0,87954.0,0.10244]
[1769538630663,0.00258838,87962.0,87949.0,0.29984]
[1769538631058,0.011384,87961.0,87949.0,0.29984]
[1769538631260,0.00258838,87960.0,87949.0,0.29984]
[1769538631456,0.00258838,87960.0,87947.0,0.10244]
[1769538631661,0.12,87958.0,87937.0,0.29984]
[1769538631961,0.12,87955.0,87929.0,0.29984]
[1769538632162,0.00258838,87954.0,87929.0,0.29984]
[1769538632455,0.00258838,87954.0,87937.0,0.011387]
[1769538632656,0.00258838,87954.0,87931.0,0.011387]
[1769538632858,0.10244,87953.0,87929.0,0.29984]
[1769538633061,0.00258838,87952.0,87929.0,0.29984]
[1769538633271,0.011385,87951.0,87932.0,0.00466371]
[1769538633460,0.00258838,87951.0,87936.0,0.00466371]
[1769538633767,0.11999999,87972.0,87937.0,0.10502838]
[1769538634067,0.011383,87963.0,87946.0,0.011385]
[1769538634267,0.11457477,87972.0,87954.0,0.011384]
[1769538634461,0.10244,87970.0,87955.0,0.00258838]
[1769538634663,0.10330282,87970.0,87955.0,0.00258838]
[1769538634858,0.011382,87972.0,87955.0,0.00258838]
[1769538635163,0.011382,87970.0,87955.0,0.00258838]
[1769538635367,0.10244,87975.0,87955.0,0.00258838]
[1769538635368,0.00086282,87969.0,87955.0,0.00258838]
[1769538635665,0.10244,87975.0,87955.0,0.00258838]
[1769538635867,0.00086282,87974.0,87955.0,0.00258838]
[1769538636565,0.12,87984.0,87955.0,0.00258838]
[1769538636771,0.12,87984.0,87962.0,0.011383]
[1769538636772,0.011381,87979.0,87962.0,0.011383]
[1769538637064,0.01020953,87987.0,87978.0,0.011381]
[1769538637264,0.01020953,87987.0,87979.0,0.00258838]
[1769538637661,0.12,87998.0,87979.0,0.01396938]
[1769538637662,0.10244,87992.0,87979.0,0.01396938]
[1769538637858,0.00086282,87992.0,87979.0,0.00258838]
[1769538639872,0.01138,87991.0,87979.0,0.00258838]
[1769538640172,0.01138,87989.0,87969.0,0.011382]
[1769538640365,0.00258838,87988.0,87969.0,0.011382]
[1769538640567,0.011381,87984.0,87964.0,0.011383]
[1769538640870,0.011381,87984.0,87960.0,0.10244]
[1769538640871,0.00258838,87983.0,87966.0,0.011383]
[1769538641071,0.00258838,87983.0,87969.0,0.011382]
[1769538641468,0.01396938,87983.0,87966.0,0.011383]
[1769538641771,0.011381,87979.0,87961.0,0.08958244]
[1769538642070,0.00258838,87978.0,87960.0,0.19202244]
[1769538642465,0.011381,87984.0,87960.0,0.19202244]
[1769538642666,0.10244,87993.0,87960.0,0.19202244]
[1769538642867,0.01138,87991.0,87974.0,0.011382]
[1769538643176,0.01138,87989.0,87971.0,0.011382]
[1769538643474,0.00258838,87988.0,87971.0,0.011382]
[1769538643969,0.01396838,87988.0,87968.0,0.011383]
[1769538644169,0.01396838,87988.0,87970.0,0.011382]
[1769538645369,0.12258838,87988.0,87964.0,0.011383]
[1769538645572,0.011381,87983.0,87966.0,0.011383]
[1769538645881,0.00258838,87982.0,87966.0,0.011383]
[1769538646085,0.00258838,87982.0,87963.0,0.011383]
[1769538646258,0.00258838,87982.0,87960.0,0.19202244]
[1769538646464,0.12,87975.0,87953.0,0.08958244]
[1769538646665,0.011383,87964.0,87949.0,0.011385]
[1769538646863,0.011383,87962.0,87947.0,0.10244]
[1769538647062,0.00258838,87961.0,87947.0,0.10244]
[1769538647473,0.011384,87957.0,87947.0,0.10244]
[1769538647776,0.011384,87955.0,87947.0,0.10244]
[1769538647970,0.00258838,87954.0,87947.0,0.10244]
[1769538648279,0.00258838,87954.0,87937.0,0.19202244]
[1769538648970,0.011385,87953.0,87937.0,0.10244]
[1769538649172,0.00258838,87952.0,87937.0,0.10244]
[1769538649373,0.00258838,87952.0,87938.0,0.00168819]
[1769538650084,0.11943726,87964.0,87945.0,0.01307319]
[1769538650280,0.00258838,87959.0,87945.0,0.01307319]
[1769538650776,0.00258838,87959.0,87945.0,0.00168819]
[1769538652170,0.00258838,87959.0,87948.0,0.00448305]
[1769538652474,0.11850564,87979.0,87953.0,0.00448305]
[1769538652675,0.011382,87972.0,87957.0,0.00448305]
[1769538652983,0.10330282,87971.0,87958.0,0.00258838]
[1769538653280,0.10330282,87971.0,87958.0,0.00707143]
[1769538653475,0.011382,87970.0,87958.0,0.00707143]
[1769538653676,0.00086282,87969.0,87958.0,0.00707143]
[1769538654777,0.011382,87973.0,87958.0,0.01845543]
[1769538654977,0.10330282,87972.0,87960.0,0.011384]
[1769538655171,0.40984,87997.0,87959.0,0.00764402]
[1769538655172,0.10244,87987.0,87971.0,0.00764402]
[1769538655373,0.10244,87987.0,87973.0,0.00644206]
[1769538655571,0.10244,87987.0,87974.0,0.00258838]
[1769538656272,0.01138,87985.0,87974.0,0.00258838]
[1769538657182,0.11382,87987.0,87974.0,0.00258838]
[1769538657378,0.11468282,87987.0,87974.0,0.00258838]
[1769538657686,0.011381,87985.0,87974.0,0.00258838]
[1769538658079,0.01224382,87985.0,87974.0,0.00258838]
[1769538658674,0.00086282,87985.0,87974.0,0.00258838]
[1769538658880,0.11742756,87998.0,87975.0,0.00771731]
[1769538659185,0.01138,87992.0,87978.0,0.00771731]
[1769538659384,0.10330282,87991.0,87979.0,0.00258838]
[1769538659976,0.01138,87990.0,87979.0,0.00258838]
[1769538660290,0.01138,87987.0,87979.0,3.8e-07]
[1769538660595,0.011378,88002.0,87981.0,0.00738841]
[1769538660777,0.00258838,88001.0,87984.0,0.00738841]
[1769538660979,0.11999999,88000.0,87979.0,3.8e-07]
[1769538661178,0.011379,87994.0,87979.0,3.8e-07]
[1769538661377,0.011379,87997.0,87980.0,0.00047028]
[1769538661585,0.011379,87995.0,87980.0,0.00047028]
[1769538661784,0.10244,87996.0,87982.0,0.00047028]
[1769538661973,0.011379,87995.0,87982.0,0.00047028]
[1769538662173,0.10244,87998.0,87982.0,0.00047028]
[1769538662373,0.011379,87993.0,87982.0,0.00047028]
[1769538662578,0.00258838,87993.0,87979.0,3.8e-07]
[1769538663082,0.01138,87992.0,87979.0,3.8e-07]
[1769538663282,0.01396838,87992.0,87979.0,3.8e-07]
[1769538664071,0.00258838,87992.0,87979.0,3.8e-07]
[1769538666388,0.00258838,87992.0,87979.0,0.01138138]
[1769538666888,0.10244,87998.0,87985.0,0.01138]
[1769538667085,0.10502838,87998.0,87985.0,0.01138]
[1769538667489,0.011378,88002.0,87985.0,0.01138]
[1769538667692,0.10244,88001.0,87979.0,3.8e-07]
[1769538667883,0.01396738,88000.0,87979.0,3.8e-07]
[1769538668188,0.00258838,88000.0,87983.0,0.011381]
[1769538668485,0.00258838,88000.0,87979.0,3.8e-07]
[1769538668691,0.011379,87997.0,87983.0,0.011381]
[1769538669087,0.01396738,88000.0,87983.0,0.011381]
[1769538669484,0.01396738,88000.0,87979.0,3.8e-07]
[1769538669485,0.011379,88000.0,87979.0,3.8e-07]
[1769538669989,0.01396738,88000.0,87982.0,0.011381]
[1769538670296,0.00258838,88000.0,87986.0,0.01138]
[1769538670989,0.011379,87999.0,87986.0,0.01138]
[1769538671287,0.00558622,88007.0,87982.0,0.10244]
[1769538671496,0.02654042,88019.0,87982.0,0.10244]
[1769538671497,0.02654042,88019.0,87983.0,0.29976]
[1769538671790,0.00258838,88018.0,88005.0,0.011378]
[1769538671992,0.00258838,88018.0,88001.0,0.10244]
[1769538672178,0.02654042,88019.0,88001.0,0.10244]
[1769538672385,0.02654042,88019.0,88008.0,0.011377]
[1769538672989,0.02654042,88019.0,88004.0,0.011378]
[1769538674490,0.0291288,88019.0,88004.0,0.011378]
[1769538674695,0.1491288,88019.0,88001.0,0.10244]
[1769538674989,0.12,88018.0,88001.0,0.10244]
[1769538675183,0.00258838,88017.0,88001.0,0.10244]
[1769538675692,0.12258838,88017.0,88001.0,0.10244]
[1769538676489,0.011377,88014.0,88001.0,0.10244]
[1769538676685,0.00258838,88013.0,88001.0,0.10244]
[1769538678584,0.00258838,88013.0,88001.0,0.113818]
[1769538678784,0.00258838,88013.0,88003.0,0.011378]
[1769538679190,0.02652908,88019.0,88003.0,0.011378]
[1769538679397,0.00258838,88018.0,88003.0,0.011378]
[1769538680698,0.00258838,88018.0,88005.0,0.011378]
[1769538680996,0.011376,88023.0,88007.0,0.011377]
[1769538681192,0.011369,88070.0,88001.0,0.10244]
[1769538681193,0.022375,88027.0,88010.0,0.011377]
[1769538681400,0.00258838,88023.0,88010.0,0.011377]
[1769538682799,0.00258838,88023.0,88001.0,0.10244]
[1769538682800,0.00258838,88022.0,88009.0,0.011377]
[1769538682996,0.00258838,88022.0,88001.0,0.10244]
[1769538683295,0.00258838,88022.0,88007.0,0.011377]
[1769538683496,0.011376,88021.0,88005.0,0.011378]
[1769538683695,0.00258838,88020.0,88005.0,0.011378]
[1769538683893,0.00258838,88020.0,88007.0,0.011378]
[1769538684097,0.12258838,88020.0,88001.0,0.10244]
[1769538684301,0.12,88008.0,87996.0,0.1024]
[1769538684491,0.12,88005.0,87990.0,0.01138]
[1769538684799,0.311056,88021.0,87989.0,0.1024]
[1769538685093,0.00258838,88021.0,88013.0,0.011377]
[1769538685299,0.00258838,88021.0,88011.0,0.011377]
[1769538685496,0.00258838,88021.0,88013.0,0.011377]
[1769538685890,0.00258838,88021.0,88010.0,0.011377]
[1769538686090,0.00258838,88021.0,88012.0,0.011377]
[1769538686296,0.011,88027.0,88014.0,0.011377]
[1769538686495,0.00258838,88026.0,88014.0,0.011377]
[1769538686690,0.00258838,88026.0,88004.0,0.1024]
[1769538687603,0.00258838,88026.0,88013.0,0.011377]
[1769538687892,0.00258838,88026.0,88004.0,0.1024]
[1769538688095,0.011376,88016.0,88004.0,0.1024]
[1769538688401,0.00258838,88015.0,88004.0,0.1024]
[1769538688785,0.011377,88014.0,88004.0,0.1024]
[1769538688999,0.00258838,88013.0,88004.0,0.1024]
[1769538690994,0.131375,88026.0,88004.0,0.1024]
[1769538691193,0.00258838,88025.0,88004.0,0.1024]
[1769538691705,0.011376,88023.0,88004.0,0.1024]
[1769538691902,0.00258838,88022.0,88012.0,0.011377]
[1769538692490,0.00258838,88022.0,88004.0,0.1024]
[1769538693402,0.011376,88021.0,88004.0,0.1024]
[1769538693602,0.00258838,88020.0,88004.0,0.1024]
[1769538693802,0.12258838,88020.0,88004.0,0.1024]
[1769538694003,0.12,88017.0,88004.0,0.1024]
[1769538694307,0.00258838,88016.0,88004.0,0.1024]
[1769538694808,0.01396438,88016.0,88004.0,0.1024]
[1769538696009,0.011377,88014.0,88004.0,0.1024]
[1769538696193,0.00258838,88013.0,88004.0,0.1024]
[1769538697096,0.01396538,88013.0,88004.0,0.1024]
[1769538697294,0.01396538,88013.0,88004.0,0.09219047]
[1769538697295,0.00258838,88013.0,88004.0,0.09219047]
[1769538697509,0.00258838,88013.0,88005.0,0.011378]
[1769538697702,0.00258838,88013.0,88007.0,0.011378]
[1769538697896,0.00258838,88013.0,88004.0,0.10356847]
[1769538698411,0.00258838,88013.0,88006.0,0.011378]
[1769538698607,0.00258838,88013.0,88004.0,0.09219047]
[1769538698608,0.1024,88019.0,88008.0,0.011377]
[1769538698802,0.10498838,88019.0,88008.0,0.011377]
[1769538699108,0.011376,88021.0,88008.0,0.011377]
[1769538699409,0.1024,88020.0,88007.0,0.011377]
[1769538699903,0.1024,88020.0,88004.0,0.09219047]
[1769538700109,0.1024,88020.0,88009.0,0.011377]
[1769538700809,0.1024,88020.0,88004.0,0.09219047]
[1769538701503,0.011376,88017.0,88004.0,0.10356847]
[1769538701704,0.011377,88015.0,88004.0,0.09219047]
[1769538701896,0.00258838,88014.0,88004.0,0.09219047]
[1769538702399,0.00258838,88014.0,88001.0,0.13456332]
[1769538702605,0.011379,87998.0,87983.0,0.011381]
[1769538702808,0.011379,87996.0,87982.0,0.113781]
[1769538703004,0.00258838,87995.0,87982.0,0.1024]
[1769538703314,0.011379,87999.0,87985.0,0.01138]
[1769538703511,0.00258838,88001.0,87985.0,0.01138]
[1769538704217,0.011378,88000.0,87982.0,0.113781]
[1769538704407,0.01396638,88000.0,87982.0,0.113781]
[1769538704814,0.01396638,88000.0,87984.0,0.01138]
[1769538705615,0.00258838,88000.0,87982.0,0.1024]
[1769538705814,0.011379,87999.0,87982.0,0.113781]
[1769538706017,0.00258838,87998.0,87984.0,0.01138]
[1769538706416,0.12,87985.0,87954.0,0.33879693]
[1769538706716,0.00258838,87984.0,87956.0,0.29968]
[1769538707111,0.00258838,87984.0,87971.0,0.011382]
[1769538708816,0.1024,87992.0,87978.0,0.011381]
[1769538709017,0.00258838,87991.0,87978.0,0.011381]
[1769538709519,0.1024,88000.0,87971.0,0.011382]
[1769538709712,0.00258838,87999.0,87985.0,0.01138]
[1769538710020,0.01396738,87999.0,87981.0,0.011381]
[1769538710408,0.00258838,87999.0,87979.0,0.1024]
[1769538710608,0.00258838,87999.0,87983.0,0.011381]
[1769538711113,0.011379,87998.0,87979.0,0.113781]
[1769538711316,0.00258838,87997.0,87981.0,0.011381]
[1769538712514,0.011379,87996.0,87981.0,0.011381]
[1769538712818,0.01138,87991.0,87979.0,0.1024]
[1769538713017,0.00258838,87990.0,87979.0,0.1024]
[1769538713620,0.01138,87989.0,87979.0,0.1024]
[1769538713822,0.00258838,87988.0,87979.0,0.1024]
[1769538714029,0.01138,87987.0,87979.0,0.1024]
[1769538714316,0.00258838,87986.0,87979.0,0.1024]
[1769538714617,0.12,87976.0,87962.0,0.00011152]
[1769538714812,0.01138,87988.0,87962.0,0.00011152]
[1769538714813,0.12,87972.0,87962.0,0.00011152]
[1769538715012,0.00258838,87971.0,87962.0,0.00011152]
[1769538716019,0.011383,87966.0,87962.0,0.00011152]
[1769538716220,0.00258838,87963.0,87951.0,0.1024]
[1769538716617,0.00258838,87963.0,87951.0,0.113785]
[1769538717212,9.34e-05,87962.0,87951.0,0.113785]
[1769538717408,0.00268178,87962.0,87951.0,0.113785]
[1769538717627,0.00268178,87962.0,87951.0,0.1024]
[1769538717919,0.12,87961.0,87946.0,0.01137055]
[1769538718222,0.01397238,87960.0,87946.0,0.01137055]
[1769538718721,0.00258838,87960.0,87947.0,0.011385]
[1769538718915,9.34e-05,87962.0,87946.0,0.01137055]
[1769538718916,0.1024,87965.0,87946.0,0.01137055]
[1769538719111,0.00258838,87969.0,87946.0,0.01137055]
[1769538719314,0.1024,87968.0,87946.0,0.01137055]
[1769538719523,0.00258838,87967.0,87950.0,0.011385]
[1769538721219,0.011383,87963.0,87946.0,0.02275555]
[1769538721423,0.01397138,87963.0,87946.0,0.02275555]
[1769538721625,0.00258838,87963.0,87948.0,0.011385]
[1769538722219,0.00258838,87963.0,87946.0,0.01137055]
[1769538722621,0.00258838,87963.0,87952.0,0.011385]
[1769538722925,0.011383,87966.0,87949.0,0.011385]
[1769538723225,0.01397138,87966.0,87949.0,0.011385]
[1769538723826,0.01397138,87966.0,87951.0,0.011385]
[1769538724225,0.011382,87970.0,87946.0,0.01137055]
[1769538724425,0.00258838,87969.0,87946.0,0.01137055]
[1769538724920,0.011383,87968.0,87952.0,0.011385]
[1769538725128,0.00258838,87968.0,87958.0,0.011384]
[1769538725325,0.113822,87973.0,87958.0,0.011384]
[1769538725525,0.00258838,87972.0,87958.0,0.011384]
[1769538725922,0.011382,87971.0,87958.0,0.011384]
[1769538726118,0.00258838,87970.0,87958.0,0.011384]
[1769538726520,0.00258838,87970.0,87946.0,0.01137055]
[1769538726723,0.00258838,87970.0,87956.0,0.011384]
[1769538726926,0.00258838,87970.0,87958.0,0.011384]
[1769538727634,0.00258838,87970.0,87955.0,0.011384]
[1769538727820,0.01397038,87970.0,87955.0,0.011384]
[1769538728314,0.00258838,87970.0,87946.0,0.01137055]
[1769538728518,0.011383,87963.0,87947.0,0.011385]
[1769538728717,0.011384,87960.0,87947.0,0.011385]
[1769538728925,0.011384,87960.0,87946.0,0.01137055]
[1769538728926,0.12,87954.0,87946.0,5.5e-07]
[1769538729231,0.011385,87952.0,87946.0,5.5e-07]
[1769538729424,0.00258838,87952.0,87946.0,5.5e-07]
[1769538730424,0.13397338,87952.0,87946.0,5.5e-07]